bitfinex/quotes_ETHUSD_20241129
["timestamp","ask_amount","ask_price","bid_price","bid_amount"]
[1732886907556,2.77162,3608.0,3607.5,2.77194]
[1732886907715,2.77156,3608.1,3607.5,2.77194]
[1732886907915,2.77156,3608.1,3607.5,3.444367]
[1732886908153,3.01578865,3608.2,3607.6,2.77191]
[1732886908459,5.78724865,3608.2,3607.6,2.77191]
[1732886908925,3.01578865,3608.2,3607.7,2.77182]
[1732886909333,5.78725865,3608.2,3607.5,3.444367]
[1732886909727,5.78725865,3608.2,3607.6,2.77187]
[1732886909940,3.01578865,3608.2,3607.7,2.77183]
[1732886911379,5.78724865,3608.2,3607.6,0.6216347]
[1732886911673,2.77156,3608.1,3607.6,0.6216347]
[1732886911969,2.77156,3608.1,3607.5,2.77194]
[1732886912166,5.78724865,3608.2,3607.5,2.77194]
[1732886912472,5.78724865,3608.2,3607.3,2.77214]
[1732886912473,5.78725865,3608.2,3607.3,2.77214]
[1732886912670,2.77162,3608.0,3607.3,2.77214]
[1732886912840,2.77162,3608.0,3607.1,2.77229]
[1732886913028,1.206,3607.7,3607.1,2.77229]
[1732886913228,1.206,3607.7,3607.1,3.453563]
[1732886913423,3.97785,3607.7,3607.1,3.453563]
[1732886913631,2.77202,3607.5,3607.1,0.681273]
[1732886913839,2.77202,3607.5,3606.9,2.77244]
[1732886914079,3.97785,3607.7,3607.0,2.77237]
[1732886914380,2.77205,3607.5,3606.8,4.04052]
[1732886914546,3.97788,3607.7,3606.8,2.77252]
[1732886914547,5.78792865,3607.4,3606.8,2.77252]
[1732886914745,1.206,3607.7,3606.4,1.2308]
[1732886914746,1.206,3607.7,3606.5,2.77277]
[1732886914990,1.206,3607.7,3607.3,2.77215]
[1732886915957,1.206,3607.7,3607.1,2.77225]
[1732886916479,1.206,3607.7,3607.3,2.77213]
[1732886916640,1.206,3607.7,3607.2,2.7722]
[1732886917665,1.206,3607.7,3607.3,2.77214]
[1732886917993,1.206,3607.7,3607.5,2.77195]
[1732886918696,1.206,3607.7,3607.3,2.77214]
[1732886919003,1.206,3607.7,3607.4,2.77207]
[1732886919355,1.206,3607.7,3607.5,2.77199]
[1732886919754,1.206,3607.7,3607.4,2.77207]
[1732886919957,1.206,3607.7,3607.5,2.77193]
[1732886920966,1.206,3607.7,3607.2,2.77219]
[1732886921175,1.206,3607.7,3607.4,2.77207]
[1732886922291,1.206,3607.7,3607.2,2.77219]
[1732886922595,3.97791,3607.7,3607.0,2.77236]
[1732886922800,2.77192,3607.6,3607.0,2.77236]
[1732886922957,2.77202,3607.5,3607.0,2.77236]
[1732886923294,2.77202,3607.5,3606.8,2.7725]
[1732886923677,2.77202,3607.5,3606.9,2.77244]
[1732886923872,4.27148865,3607.4,3606.4,0.55538908]
[1732886924199,7.04360865,3607.4,3606.8,2.77252]
[1732886924703,4.27148865,3607.4,3606.5,2.77277]
[1732886924852,1.2557,3607.0,3606.5,2.77277]
[1732886926069,4.02809,3607.0,3606.5,2.77277]
[1732886926272,4.02809,3607.0,3606.4,2.77282]
[1732886926874,1.2557,3607.0,3606.5,2.7727]
[1732886927090,1.2557,3607.0,3606.7,2.7726]
[1732886927260,1.265,3607.3,3606.9,2.77239]
[1732886927462,1.265,3607.3,3606.7,1.2521]
[1732886927661,1.2644,3607.7,3607.2,2.77216]
[1732886927966,1.2644,3607.7,3607.6,2.77192]
[1732886928177,2.77148,3608.2,3607.6,2.77192]
[1732886928178,1.35110162,3608.1,3607.8,2.77171]
[1732886928377,0.08670162,3608.2,3607.5,2.772]
[1732886928700,1.2644,3608.5,3608.0,2.7716]
[1732886928915,1.35109031,3608.5,3608.3,2.77133]
[1732886929061,1.2644,3608.5,3608.3,2.77133]
[1732886929400,1.2644,3608.5,3608.2,2.77145]
[1732886930108,1.2644,3608.5,3608.1,2.77153]
[1732886930276,1.2644,3608.5,3608.0,2.77157]
[1732886930472,1.35108418,3608.5,3608.0,2.77157]
[1732886931470,0.08668418,3608.4,3608.0,2.77157]
[1732886931703,0.08668418,3608.3,3608.0,2.77157]
[1732886931874,0.08668418,3608.4,3608.0,2.77157]
[1732886932604,0.08668418,3608.3,3608.0,2.77157]
[1732886932804,0.08668418,3608.4,3608.1,2.77148]
[1732886933003,0.08668418,3608.3,3608.2,2.77143]
[1732886933169,0.08668418,3608.4,3608.1,2.77148]
[1732886933363,0.08668418,3608.3,3608.1,2.77148]
[1732886933564,0.08668418,3608.4,3608.1,2.77148]
[1732886933809,0.08668418,3608.3,3608.1,2.77148]
[1732886933978,0.08668418,3608.4,3608.1,2.77148]
[1732886934167,1.2644,3608.5,3608.1,2.77148]
[1732886934168,0.08668418,3608.3,3608.1,2.77148]
[1732886934364,0.08668418,3608.4,3608.1,2.77148]
[1732886935113,0.08668418,3608.4,3608.3,2.77138]
[1732886935314,0.08668418,3608.8,3608.2,2.79913235]
[1732886935513,0.08668418,3609.1,3608.8,2.77098]
[1732886935714,0.08668418,3609.0,3608.9,2.77092]
[1732886935867,0.08668418,3609.1,3608.9,2.77092]
[1732886936070,0.08668418,3609.2,3608.9,2.77092]
[1732886936289,0.08668418,3609.1,3608.9,2.77092]
[1732886936601,0.08668418,3609.2,3608.9,2.77092]
[1732886936804,0.08668418,3609.2,3608.8,2.77099]
[1732886936998,0.08668418,3609.4,3609.2,2.77069]
[1732886937197,0.08668418,3609.5,3609.0,3.95149]
[1732886937523,2.77031,3609.7,3609.1,2.77075]
[1732886937686,0.08668418,3609.6,3609.1,2.77077]
[1732886937885,5.78594865,3609.9,3609.2,2.77063]
[1732886938080,0.08665504,3609.8,3609.2,2.77063]
[1732886938691,0.08665504,3609.8,3609.3,2.7706]
[1732886940608,3.01578865,3609.9,3609.4,2.77052]
[1732886940814,0.08665302,3609.8,3609.4,2.77052]
[1732886940989,1.2561,3609.8,3609.2,2.77064]
[1732886941195,1.34275302,3609.8,3609.3,2.77058]
[1732886941428,1.2561,3609.8,3609.4,2.77053]
[1732886941937,1.2561,3609.8,3609.1,1.2643]
[1732886942123,1.2561,3609.8,3609.4,2.77051]
[1732886942813,1.2561,3609.8,3609.3,2.77057]
[1732886943107,3.01578865,3609.7,3608.9,2.77087]
[1732886943430,2.77046,3609.5,3608.9,2.77087]
[1732886943638,2.77039,3609.6,3609.0,2.7708]
[1732886944389,2.77047,3609.5,3608.8,2.77093]
[1732886944603,2.77059,3609.4,3608.8,2.77093]
[1732886944809,2.77047,3609.5,3608.9,2.77091]
[1732886945835,3.01578865,3609.3,3608.2,0.54897348]
[1732886946035,1.174,3609.4,3608.2,0.54897348]
[1732886946036,3.01578865,3608.9,3608.4,2.77126]
[1732886946220,5.78671865,3608.9,3608.2,2.77139]
[1732886946541,5.78671865,3608.9,3608.2,2.7714]
[1732886946723,3.94503,3608.8,3608.0,3.91949]
[1732886946893,2.77124,3608.5,3607.9,2.77168]
[1732886947093,2.77123,3608.6,3607.9,2.77168]
[1732886947293,2.77132,3608.4,3607.7,2.77182]
[1732886947551,1.174,3608.2,3607.7,2.77182]
[1732886948061,2.77156,3608.1,3607.6,2.77191]
[1732886948357,1.174,3608.2,3607.6,2.77191]
[1732886948556,1.174,3608.2,3607.7,2.77184]
[1732886948781,1.174,3608.2,3607.8,2.77172]
[1732886949055,1.174,3608.2,3607.4,2.77201]
[1732886949056,2.77155,3608.1,3607.4,2.77201]
[1732886949226,2.77161,3608.0,3607.2,0.55466971]
[1732886949422,3.01578865,3608.1,3607.0,2.77235]
[1732886949624,2.77183,3607.8,3607.1,2.77228]
[1732886949817,2.77161,3608.0,3607.1,2.77228]
[1732886950158,2.77185,3607.7,3607.1,2.77228]
[1732886950357,1.2481,3607.5,3606.9,2.77245]
[1732886950558,2.77209,3607.4,3606.5,3.96935]
[1732886950855,2.77213,3607.4,3606.9,0.55966123]
[1732886951643,4.02012,3607.5,3606.9,3.33211123]
[1732886952043,4.02012,3607.5,3606.9,0.55966123]
[1732886952044,2.77211,3607.4,3606.9,0.55966123]
[1732886954858,1.2481,3607.5,3606.6,3.169625]
[1732886955078,2.77216,3607.3,3606.7,2.77261]
[1732886955274,2.77216,3607.3,3606.7,3.4865085]
[1732886955571,5.78794865,3607.3,3606.4,2.77284]
[1732886955872,2.77239,3607.0,3606.4,3.32917092]
[1732886956633,3.01578865,3607.3,3606.4,0.55633092]
[1732886956931,2.77251,3606.9,3606.0,2.77315]
[1732886957133,2.77251,3606.9,3606.3,2.77291]
[1732886957776,2.77251,3606.9,3606.1,3.176485]
[1732886957978,2.77257,3606.8,3606.1,3.176485]
[1732886958274,2.77243,3607.0,3606.3,2.77292]
[1732886958480,2.77246,3606.9,3606.3,2.77292]
[1732886960197,3.01578865,3607.3,3606.6,1.18]
[1732886960198,2.77216,3607.3,3606.6,1.18]
[1732886960749,2.77216,3607.3,3606.7,2.7726]
[1732886960952,2.77225,3607.2,3606.5,2.77277]
[1732886961889,2.77216,3607.3,3606.5,2.77277]
[1732886962099,3.01578865,3607.3,3606.3,0.5949425]
[1732886962390,2.77232,3607.1,3606.4,2.77279]
[1732886962577,2.77247,3606.9,3606.2,4.04317]
[1732886963092,2.77247,3606.9,3606.3,2.77292]
[1732886963463,2.77254,3606.8,3606.2,1.2702]
[1732886963669,2.77254,3606.8,3606.2,4.04315]
[1732886963869,2.77254,3606.8,3606.2,4.7651225]
[1732886966391,2.77238,3607.0,3606.2,4.7651225]
[1732886966561,3.01578865,3607.3,3606.2,4.7651225]
[1732886966562,2.77208,3607.4,3606.2,1.9921725]
[1732886966768,2.77208,3607.4,3606.8,2.77253]
[1732886967105,4.2481,3607.5,3606.9,2.77245]
[1732886967253,7.02011,3607.5,3606.9,2.77245]
[1732886967900,1.2481,3607.5,3607.0,2.77236]
[1732886968086,2.77177,3607.8,3607.2,2.77216]
[1732886968393,1.2271,3607.9,3607.4,2.77207]
[1732886969895,3.97687,3608.2,3607.6,2.77188]
[1732886970259,2.77132,3608.4,3607.8,2.77171]
[1732886970475,2.77144,3608.3,3607.6,4.02148]
[1732886970679,2.77152,3608.2,3607.6,4.700834]
[1732886971603,2.77167,3608.0,3607.3,2.77214]
[1732886972095,2.77166,3608.0,3607.2,1.2496]
[1732886972260,0.0867004,3607.9,3607.2,1.2496]
[1732886972460,2.77148,3608.2,3607.6,2.77188]
[1732886972799,0.08669796,3608.1,3607.4,2.77206]
[1732886972996,2.77158,3608.1,3607.4,2.77206]
[1732886973185,0.08669796,3608.0,3607.4,2.77206]
[1732886973499,0.08669796,3608.0,3607.4,3.451446]
[1732886973662,2.77161,3608.0,3607.4,3.451446]
[1732886974375,0.08669519,3607.9,3607.5,2.77196]
[1732886974571,0.08669519,3608.0,3607.5,2.77196]
[1732886975273,0.08669519,3607.9,3607.5,5.54392]
[1732886975482,0.08669519,3607.9,3607.6,2.7719]
[1732886975700,0.08669519,3608.0,3607.6,2.7719]
[1732886975898,0.08669519,3607.9,3607.4,0.679386]
[1732886976200,2.9102615,3608.1,3607.4,0.679386]
[1732886976201,0.08669519,3607.8,3607.4,3.451396]
[1732886976371,0.08669519,3607.7,3607.4,3.451396]
[1732886976575,2.77172,3607.9,3607.3,2.77215]
[1732886976888,0.08669519,3607.8,3607.4,2.77207]
[1732886977094,0.08669519,3607.7,3607.4,2.77207]
[1732886977264,2.77172,3607.9,3607.4,2.77207]
[1732886977596,0.08669612,3607.8,3607.4,2.77207]
[1732886977800,0.08669612,3607.7,3607.5,2.77196]
[1732886978005,2.85834612,3608.0,3607.4,2.77207]
[1732886978162,0.08669612,3607.9,3607.2,6.794]
[1732886978364,0.08669612,3607.8,3607.2,4.02177]
[1732886978585,0.08669612,3607.7,3607.3,2.77214]
[1732886978899,0.08669735,3607.6,3607.3,2.77214]
[1732886979103,2.77171,3607.9,3607.3,2.77214]
[1732886979266,0.08669744,3607.8,3607.3,2.77214]
[1732886979470,0.08669744,3607.7,3607.2,4.02177]
[1732886979801,0.08669744,3607.6,3607.5,2.772]
[1732886979971,0.0866958,3608.0,3607.5,2.772]
[1732886980176,2.77148,3608.2,3607.4,2.77203]
[1732886980177,0.0866958,3607.9,3607.4,2.77203]
[1732886980393,0.0866958,3607.8,3607.4,2.77203]
[1732886980591,0.0866958,3607.7,3607.6,2.77186]
[1732886980780,0.0866958,3608.0,3607.6,3.446107]
[1732886980988,0.0866958,3607.9,3607.6,2.77186]
[1732886981190,0.0866958,3607.8,3607.5,1.1986]
[1732886981408,0.08669653,3607.7,3607.5,1.1986]
[1732886981614,2.85824653,3608.1,3607.6,2.77192]
[1732886981772,2.85833653,3608.0,3607.5,3.9706]
[1732886981968,0.08669653,3607.9,3607.5,3.9706]
[1732886982280,2.77164,3608.0,3607.5,3.9706]
[1732886982281,0.08669653,3607.8,3607.5,1.1986]
[1732886982478,0.08669653,3607.9,3607.5,3.97055]
[1732886982710,0.13871627,3608.3,3607.5,3.97055]
[1732886982894,0.08669296,3608.2,3607.7,2.77178]
[1732886983206,0.08669296,3608.1,3607.8,3.93855]
[1732886983503,0.08669296,3608.0,3607.8,3.93855]
[1732886983709,2.77134,3608.4,3607.8,3.93855]
[1732886983710,2.77134,3608.4,3607.9,2.77169]
[1732886983919,0.08669038,3608.3,3607.9,2.77169]
[1732886984084,0.08669038,3608.2,3608.1,2.77149]
[1732886984282,0.08669038,3608.6,3608.1,2.77149]
[1732886984484,0.08669038,3608.6,3607.9,2.77169]
[1732886984485,0.08669038,3608.5,3607.9,2.77169]
[1732886984697,0.08669038,3608.4,3608.1,2.7715]
[1732886984916,0.08669038,3608.5,3608.1,3.17073]
[1732886985124,0.08669038,3608.8,3608.3,2.77133]
[1732886985431,0.08669038,3608.8,3608.0,1.2208]
[1732886985432,0.08669038,3608.7,3608.6,2.77112]
[1732886985721,2.77068,3609.3,3608.6,2.77112]
[1732886985722,0.08669038,3608.9,3608.6,2.77112]
[1732886985887,0.08669038,3609.2,3608.7,2.77107]
[1732886986096,0.08669038,3609.1,3608.7,2.77107]
[1732886986306,0.08669038,3609.2,3608.7,2.77107]
[1732886986505,0.08669038,3609.1,3608.7,2.77107]
[1732886986823,0.08669038,3609.1,3608.5,2.77116]
[1732886986984,0.08669038,3609.0,3608.5,2.77116]
[1732886987184,0.08669038,3609.1,3608.5,2.77116]
[1732886987581,2.85746038,3609.1,3608.5,2.77116]
[1732886987821,0.08669038,3609.0,3608.5,2.77116]
[1732886989086,2.77077,3609.1,3608.5,2.77116]
[1732886991629,2.7712,3608.6,3608.0,2.77159]
[1732886992420,2.77103,3608.8,3608.1,2.77149]
[1732886992588,2.77108,3608.7,3608.1,2.77149]
[1732886993203,0.08668029,3608.6,3608.1,2.77149]
[1732886993412,0.08668029,3608.6,3607.8,1.2455]
[1732886993413,0.08668029,3608.6,3608.2,2.77145]
[1732886993613,2.77109,3608.7,3608.1,2.77149]
[1732886993831,2.77109,3608.7,3608.2,2.77145]
[1732886993994,2.77098,3608.9,3608.2,2.77141]
[1732886994189,0.08667799,3608.8,3608.2,2.77141]
[1732886994390,2.771,3608.8,3608.2,2.77141]
[1732886994700,0.08667799,3608.7,3608.2,2.77141]
[1732886994909,0.08667799,3608.7,3608.0,2.77154]
[1732886995199,2.77115,3608.6,3608.0,2.77154]
[1732886995629,2.77135,3608.4,3607.8,4.01726]
[1732886995830,2.77135,3608.4,3607.8,4.52934439]
[1732886996202,2.77135,3608.4,3607.8,1.2455]
[1732886996544,3.01578865,3608.9,3607.6,2.77192]
[1732886996545,4.00334,3608.3,3607.7,2.77183]
[1732886996892,4.00333,3608.3,3607.4,2.77206]
[1732886997096,2.77162,3608.0,3607.4,2.77206]
[1732886997295,2.77176,3607.9,3607.2,3.9558]
[1732886997590,2.77177,3607.8,3607.2,3.9558]
[1732886998214,2.77189,3607.7,3607.2,1.1836]
[1732886998389,4.02619,3607.7,3607.1,2.7723]
[1732886998606,2.77202,3607.5,3606.9,3.318397]
[1732886998935,2.77202,3607.5,3606.9,2.77242]
[1732886999090,2.77213,3607.4,3606.6,2.77266]
[1732886999291,4.27008865,3607.7,3606.6,0.404006]
[1732886999494,4.27008865,3607.7,3606.2,2.77296]
[1732886999495,0.08670931,3607.6,3607.3,2.77209]
[1732886999937,2.85853931,3607.8,3607.1,4.03969]
[1732887000090,0.08670931,3607.7,3607.3,2.7721]
[1732887000291,1.2543,3608.0,3607.1,4.03968]
[1732887000292,0.08670931,3607.8,3607.1,4.03968]
[1732887000492,0.08670931,3607.7,3607.3,2.77208]
[1732887000748,4.02596,3608.0,3607.5,2.77199]
[1732887000749,0.08670931,3607.9,3607.5,2.77199]
[1732887001035,0.08670931,3607.8,3607.7,2.77184]
[1732887001236,2.77147,3608.2,3607.6,2.77191]
[1732887001421,1.2369,3608.3,3607.4,3.45319]
[1732887001422,0.08669107,3608.0,3607.4,3.45319]
[1732887001824,2.85831107,3608.0,3607.4,3.45319]
[1732887002026,2.77162,3608.0,3607.4,3.45319]
[1732887002207,0.13871084,3608.2,3607.5,2.77198]
[1732887002403,0.08669263,3608.1,3607.5,2.77198]
[1732887002602,0.08669263,3608.2,3607.5,2.77198]
[1732887002797,0.08669263,3608.1,3607.7,2.7718]
[1732887002999,0.08669263,3608.2,3607.5,2.77198]
[1732887003201,2.85829263,3608.1,3607.4,2.77206]
[1732887003508,2.77169,3607.9,3607.2,2.77218]
[1732887003716,2.77169,3607.9,3607.3,2.77215]
[1732887003926,2.77198,3607.6,3607.1,1.2674]
[1732887004125,2.77214,3607.4,3606.8,3.95739]
[1732887004299,2.77209,3607.4,3606.8,2.77249]
[1732887004809,1.1497,3607.7,3606.6,0.54809265]
[1732887005013,2.85865784,3607.6,3607.0,2.77237]
[1732887005247,1.1497,3607.7,3607.1,2.77226]
[1732887005442,2.77185,3607.7,3607.1,2.77226]
[1732887005600,3.92134,3608.0,3607.2,1.1849]
[1732887005799,0.08670009,3607.9,3607.2,3.95707]
[1732887006034,0.08670009,3607.8,3607.3,2.77214]
[1732887006242,0.08670009,3607.7,3607.3,2.77214]
[1732887006416,0.08670009,3607.7,3607.2,1.1849]
[1732887006737,2.85855009,3607.7,3607.2,1.1849]
[1732887006900,0.08670186,3607.6,3607.2,1.1849]
[1732887007101,2.77185,3607.7,3607.2,1.1849]
[1732887008312,1.1497,3608.0,3606.7,4.16778926]
[1732887008639,2.77198,3607.6,3607.0,2.77237]
[1732887009504,2.77198,3607.6,3607.1,2.77229]
[1732887009705,2.77206,3607.5,3606.9,2.77239]
[1732887010236,2.77206,3607.5,3606.8,0.36542634]
[1732887010438,1.2321,3607.7,3606.7,0.17329926]
[1732887010743,2.77211,3607.4,3606.6,2.77269]
[1732887010912,0.08671052,3607.3,3606.8,2.77252]
[1732887011364,2.85887052,3607.3,3606.8,2.77252]
[1732887011503,1.2321,3607.7,3606.8,2.77252]
[1732887011698,1.2321,3607.7,3606.4,1.2492]
[1732887011699,1.2321,3607.7,3607.0,2.77234]
[1732887012020,1.2321,3607.7,3606.5,2.77271]
[1732887012021,3.99632,3608.4,3607.7,2.77184]
[1732887012222,2.77146,3608.2,3607.1,3.94675]
[1732887012418,2.77209,3607.4,3606.9,2.77241]
[1732887012747,2.77228,3607.2,3606.6,2.77267]
[1732887012958,2.77216,3607.3,3606.7,3.165777]
[1732887013121,2.77216,3607.3,3606.7,0.393227]
[1732887013122,2.77232,3607.1,3606.7,0.393227]
[1732887013948,2.77216,3607.3,3606.7,0.393227]
[1732887014148,2.77216,3607.3,3606.7,3.165837]
[1732887014318,2.77216,3607.3,3606.7,0.393227]
[1732887014822,2.77216,3607.3,3606.7,3.165797]
[1732887015209,2.77208,3607.4,3606.8,2.77252]
[1732887015413,0.08671299,3607.3,3606.9,2.77242]
[1732887015605,1.27001299,3607.8,3606.9,1.2028]
[1732887015813,2.77197,3607.6,3606.9,1.2028]
[1732887016112,2.77197,3607.6,3607.0,2.77238]
[1732887016316,2.772,3607.5,3606.9,3.97523]
[1732887016519,2.772,3607.5,3606.3,3.34047951]
[1732887016520,3.9307,3607.3,3606.7,2.77261]
[1732887016944,1.1585,3607.3,3606.8,2.77253]
[1732887017158,1.2452112,3607.3,3606.8,2.77253]
[1732887017508,1.2452112,3607.3,3606.8,2.77248]
[1732887017818,4.06915839,3607.6,3607.0,2.77236]
[1732887018038,0.08670983,3607.5,3607.0,2.77236]
[1732887018215,0.08670969,3607.5,3607.0,2.77236]
[1732887018717,2.85875969,3607.5,3606.9,2.77245]
[1732887018921,0.08670969,3607.4,3607.0,2.77237]
[1732887019118,0.08670969,3607.4,3606.6,2.77266]
[1732887019325,2.77239,3607.0,3606.5,3.92327]
[1732887019537,2.77248,3606.9,3606.3,2.77286]
[1732887019710,2.77248,3606.9,3606.3,3.442393]
[1732887019912,2.77226,3607.2,3606.4,2.77283]
[1732887020134,0.08671592,3607.1,3606.4,2.77283]
[1732887020451,0.08671592,3607.1,3606.3,3.442393]
[1732887020452,0.08671592,3607.1,3606.5,2.77275]
[1732887020839,2.77239,3607.0,3606.5,2.77275]
[1732887021561,2.77239,3607.0,3606.2,1.1494]
[1732887021562,2.77259,3606.8,3606.2,2.77295]
[1732887021846,2.77262,3606.7,3606.1,2.77301]
[1732887022059,2.77259,3606.8,3606.2,2.77296]
[1732887022429,1.1972,3606.9,3606.3,2.80064626]
[1732887022660,1.28392148,3606.9,3606.3,2.80064626]
[1732887022967,1.28392148,3606.9,3606.5,2.77275]
[1732887023169,1.28391885,3606.9,3606.5,2.77275]
[1732887023693,0.08671885,3606.9,3606.5,0.55733963]
[1732887023822,0.08671711,3607.3,3606.8,2.77248]
[1732887024022,0.08671711,3607.2,3606.6,1.2639]
[1732887024222,0.08671711,3607.1,3606.7,2.7726]
[1732887024468,0.08671711,3607.0,3606.7,2.7726]
[1732887024668,0.08671711,3607.2,3606.8,2.77248]
[1732887024872,0.08671711,3607.1,3606.9,2.7724]
[1732887025039,0.08671711,3607.3,3606.9,2.7724]
[1732887025221,0.08671711,3607.2,3607.1,2.77231]
[1732887025427,0.08671711,3607.4,3607.1,3.32955325]
[1732887025747,4.13089738,3607.7,3607.1,2.77231]
[1732887025748,0.08671711,3607.3,3607.1,2.77231]
[1732887025951,2.85864711,3607.6,3606.9,5.5448]
[1732887026162,2.85872711,3607.5,3606.7,2.77259]
[1732887026461,2.77224,3607.2,3606.7,2.77259]
[1732887026666,1.2602,3607.2,3606.5,2.77275]
[1732887026868,2.85908711,3607.1,3606.5,2.77275]
[1732887027038,0.08671711,3607.0,3606.1,4.02394]
[1732887027372,2.85922711,3606.9,3606.3,2.7729]
[1732887027538,0.08671711,3606.8,3606.3,2.7729]
[1732887027742,0.08671711,3606.7,3606.3,2.7729]
[1732887027943,2.77251,3606.9,3606.3,2.7729]
[1732887028270,2.8592626,3606.8,3606.3,2.7729]
[1732887028564,0.0867226,3606.7,3606.3,2.7729]
[1732887028723,2.77254,3606.8,3606.3,2.7729]
[1732887028926,0.08672186,3606.7,3606.3,2.7729]
[1732887029228,2.77254,3606.8,3606.3,2.7729]
[1732887029424,0.08672341,3606.7,3606.1,4.02394]
[1732887029658,2.77251,3606.9,3606.1,2.77307]
[1732887029659,2.77275,3606.6,3606.1,2.77307]
[1732887029829,2.77249,3606.9,3606.1,2.77307]
[1732887030043,2.77266,3606.7,3606.1,2.77307]
[1732887030251,0.08672542,3606.6,3606.1,2.77307]
[1732887030946,0.08672542,3606.6,3606.2,2.77298]
[1732887031138,0.08672542,3606.8,3606.3,2.77287]
[1732887031339,0.08672542,3606.7,3606.3,2.77287]
[1732887031583,0.13876189,3607.0,3606.1,2.77307]
[1732887031584,2.77254,3606.8,3606.1,2.77307]
[1732887031783,0.08672421,3606.7,3606.1,2.77307]
[1732887032084,0.08672421,3606.6,3606.1,3.444487]
[1732887032300,0.08672421,3606.7,3606.2,2.77299]
[1732887032441,0.08672421,3606.6,3606.1,3.444487]
[1732887032641,0.08672421,3606.5,3606.1,3.444487]
[1732887032868,0.08672421,3606.7,3606.1,3.444487]
[1732887033145,0.08672421,3606.6,3606.1,3.444487]
[1732887033494,2.77254,3606.8,3606.1,3.444487]
[1732887033789,0.08672537,3606.7,3606.1,3.444487]
[1732887033987,0.08672537,3606.6,3606.3,2.77292]
[1732887034289,0.13876046,3606.9,3606.3,2.77292]
[1732887034290,0.13876046,3606.9,3606.8,2.77254]
[1732887034455,0.08672358,3606.9,3606.8,2.77254]
[1732887034788,0.08672358,3606.9,3606.7,2.7726]
[1732887035083,0.08672358,3606.8,3606.7,2.7726]
[1732887035995,0.08672358,3607.2,3606.8,2.77252]
[1732887036146,0.08672358,3607.1,3606.8,2.77252]
[1732887036347,0.08672358,3607.0,3606.8,2.77252]
[1732887036691,2.77208,3607.4,3606.8,2.77252]
[1732887036692,0.08672358,3606.9,3606.8,2.77252]
[1732887036845,0.08672358,3606.9,3606.8,3.10812132]
[1732887037051,0.08672358,3607.2,3606.9,2.77242]
[1732887037273,2.91076046,3607.5,3606.9,2.77242]
[1732887037274,0.08672358,3607.1,3606.9,2.77242]
[1732887037449,0.08672358,3607.0,3606.9,2.77242]
[1732887037775,0.08672358,3607.0,3606.4,1.236]
[1732887037976,2.85918358,3606.9,3606.4,2.77282]
[1732887038184,1.1929,3607.0,3606.5,2.77275]
[1732887038185,0.08672358,3606.8,3606.5,2.77275]
[1732887038397,0.08672358,3606.7,3606.5,2.77275]
[1732887038692,0.08672057,3606.6,3606.3,2.77292]
[1732887038983,2.77258,3606.8,3606.2,2.77299]
[1732887039141,0.08672456,3606.7,3606.2,2.77299]
[1732887039344,0.08672456,3606.6,3606.2,2.77293]
[1732887039543,0.08672456,3606.5,3606.1,3.95291]
[1732887039779,0.08672629,3606.4,3606.1,3.95291]
[1732887040092,2.77264,3606.7,3606.1,3.95291]
[1732887040093,2.77264,3606.7,3606.2,2.77299]
[1732887040248,0.08672675,3606.6,3606.3,2.77292]
[1732887040448,0.08672675,3606.5,3606.3,2.77292]
[1732887040681,0.08672675,3606.4,3606.1,4.625514]
[1732887040845,2.77263,3606.7,3606.1,4.625514]
[1732887041045,2.77263,3606.7,3606.1,3.95291]
[1732887041046,0.08672739,3606.6,3606.1,3.95291]
[1732887041290,0.08672739,3606.5,3606.1,3.95291]
[1732887041491,0.08672739,3606.4,3606.1,3.95291]
[1732887041786,2.77263,3606.7,3606.1,3.95291]
[1732887041983,0.0867272,3606.6,3606.1,3.95291]
[1732887042189,0.0867272,3606.5,3606.1,3.95291]
[1732887042502,0.0867272,3606.4,3606.1,3.95291]
[1732887042783,2.77263,3606.7,3606.1,3.95291]
[1732887042991,0.08672754,3606.6,3606.1,2.77301]
[1732887043284,0.08672754,3606.5,3606.1,2.77301]
[1732887043489,0.08672754,3606.4,3606.1,2.77301]
[1732887043686,0.08672797,3606.3,3606.1,2.77301]
[1732887043986,2.7727,3606.6,3606.1,2.77301]
[1732887044193,0.08672851,3606.5,3606.1,2.77301]
[1732887044344,0.08672851,3606.4,3606.1,2.77301]
[1732887044660,2.77262,3606.7,3606.1,2.77301]
[1732887044845,0.08672743,3606.6,3606.1,2.77301]
[1732887045053,1.1852,3606.4,3606.0,2.77314]
[1732887045255,0.08672743,3606.3,3606.0,2.77314]
[1732887045557,0.08672743,3606.2,3606.0,2.77314]
[1732887045759,1.1852,3606.4,3606.0,2.77314]
[1732887045948,0.08673292,3606.3,3606.0,2.77314]
[1732887046148,0.08673292,3606.2,3605.8,3.93895]
[1732887046393,0.08673292,3606.1,3605.8,3.93895]
[1732887046563,1.1852,3606.4,3605.7,2.77334]
[1732887046887,0.08673549,3606.3,3605.7,2.77334]
[1732887047054,0.08673549,3606.2,3605.9,2.77317]
[1732887047249,0.08673549,3606.1,3605.9,2.77317]
[1732887047445,3.95804,3606.4,3605.9,2.77317]
[1732887047656,3.95804,3606.4,3605.8,2.77324]
[1732887047657,0.08673381,3606.3,3605.8,2.77324]
[1732887047860,0.22551361,3606.2,3605.5,3.99611]
[1732887048099,0.08673381,3606.1,3605.5,4.72941061]
[1732887048404,0.08673381,3606.0,3605.8,2.77324]
[1732887048603,0.1387798,3606.3,3605.9,2.77323]
[1732887048766,0.08673565,3606.2,3605.9,2.77323]
[1732887048962,0.1387798,3606.3,3605.9,2.77323]
[1732887048963,0.08673565,3606.1,3605.9,2.77323]
[1732887049200,0.1387798,3606.3,3606.0,2.77315]
[1732887049497,0.08673324,3606.2,3606.0,2.77315]
[1732887049809,1.1852,3606.4,3606.0,2.77315]
[1732887049810,0.08673324,3606.1,3606.0,2.77315]